[Event "Championnat d'Europe de Blitz"]
[Date "2024.12.09"]
[White "Smeets, Jan"]
[Black "Manea, Alexandru"]
[WhiteElo "2552"]
[BlackElo "2272"]
[Round "2.24"]
[Result "1-0"]
[TimeControl "180+2"]

1. e4 {[%emt 00:00:01] [%clk 00:03:03]} Nf6 {[%emt 00:00:03] [%clk 00:03:01]} 2.
e5 {[%clk 00:03:04]} Nd5 {[%clk 00:03:02]} 3. d4 {[%clk 00:03:05]} d6 {[%clk
00:03:03]} 4. Nf3 {[%clk 00:03:06]} dxe5 {[%emt 00:00:03] [%clk 00:03:03]} 5.
Nxe5 {[%emt 00:00:01] [%clk 00:03:07]} c6 {[%clk 00:03:04]} 6. Be2 {[%emt
00:00:16] [%clk 00:02:53]} Bf5 {[%emt 00:00:02] [%clk 00:03:04]} 7. O-O {[%emt
00:00:07] [%clk 00:02:48]} Nd7 {[%emt 00:00:01] [%clk 00:03:05]} 8. c4 {[%emt
00:00:07] [%clk 00:02:44]} N5f6 {[%emt 00:00:21] [%clk 00:02:45]} 9. f4 {[%emt
00:00:36] [%clk 00:02:10]} e6 {[%emt 00:00:08] [%clk 00:02:39]} 10. Nc3 {[%emt
00:00:01] [%clk 00:02:10]} Nxe5 {[%emt 00:00:49] [%clk 00:01:52]} 11. fxe5
{[%emt 00:00:26] [%clk 00:01:47]} Ne4 {[%emt 00:00:01] [%clk 00:01:52]} 12. Be3
{[%emt 00:00:17] [%clk 00:01:33]} Be7 {[%emt 00:00:08] [%clk 00:01:46]} 13. Bd3
{[%emt 00:00:38] [%clk 00:00:57]} Nxc3 {[%emt 00:00:11] [%clk 00:01:37]} 14.
bxc3 {[%emt 00:00:01] [%clk 00:00:58]} Bg6 {[%emt 00:00:04] [%clk 00:01:35]} 15.
Rb1 {[%emt 00:00:06] [%clk 00:00:54]} Qc7 {[%emt 00:00:09] [%clk 00:01:28]} 16.
Bxg6 {[%emt 00:00:10] [%clk 00:00:45]} hxg6 {[%emt 00:00:02] [%clk 00:01:29]}
17. Qf3 {[%emt 00:00:05] [%clk 00:00:42]} O-O {[%emt 00:00:25] [%clk 00:01:07]}
18. Qg4 {[%emt 00:00:02] [%clk 00:00:41]} c5 {[%emt 00:00:06] [%clk 00:01:03]}
19. Rbc1 {[%emt 00:00:10] [%clk 00:00:33]} Rab8 {[%emt 00:00:11] [%clk
00:00:54]} 20. Qe4 {[%emt 00:00:04] [%clk 00:00:31]} cxd4 {[%emt 00:00:16] [%clk
00:00:40]} 21. cxd4 {[%clk 00:00:32]} Qa5 {[%emt 00:00:04] [%clk 00:00:38]} 22.
d5 {[%emt 00:00:07] [%clk 00:00:27]} Bc5 {[%emt 00:00:03] [%clk 00:00:37]} 23.
d6 {[%emt 00:00:07] [%clk 00:00:22]} Bxe3+ {[%emt 00:00:05] [%clk 00:00:34]} 24.
Qxe3 {[%emt 00:00:01] [%clk 00:00:24]} Qxa2 {[%clk 00:00:35]} 25. c5 {[%emt
00:00:06] [%clk 00:00:19]} Rbc8 {[%emt 00:00:05] [%clk 00:00:32]} 26. Rfd1
{[%emt 00:00:05] [%clk 00:00:16]} Rfd8 {[%emt 00:00:03] [%clk 00:00:31]} 27. Qd4
{[%emt 00:00:02] [%clk 00:00:16]} Qa6 {[%emt 00:00:14] [%clk 00:00:20]} 28. Ra1
{[%emt 00:00:04] [%clk 00:00:13]} Qc6 {[%emt 00:00:02] [%clk 00:00:20]} 29. Rdc1
{[%emt 00:00:03] [%clk 00:00:12]} b6 {[%emt 00:00:05] [%clk 00:00:17]} 30. Rxa7
{[%emt 00:00:04] [%clk 00:00:10]} bxc5 {[%emt 00:00:01] [%clk 00:00:18]} 31. Qc4
{[%emt 00:00:04] [%clk 00:00:08]} g5 {[%emt 00:00:03] [%clk 00:00:18]} 32. h3
{[%emt 00:00:02] [%clk 00:00:08]} g6 {[%emt 00:00:03] [%clk 00:00:17]} 33. Kh2
{[%clk 00:00:09]} Rd7 {[%emt 00:00:02] [%clk 00:00:17]} 34. Ra5 {[%emt 00:00:03]
[%clk 00:00:08]} Qb6 {[%emt 00:00:05] [%clk 00:00:13]} 35. Rb5 {[%emt 00:00:01]
[%clk 00:00:09]} Qa7 {[%emt 00:00:01] [%clk 00:00:14]} 36. Qg4 {[%emt 00:00:03]
[%clk 00:00:08]} c4 {[%emt 00:00:07]} 37. Rxc4 {[%emt 00:00:01] [%clk 00:00:08]}
Rxc4 {[%emt 00:00:02] [%clk 00:00:11]} 38. Qxc4 {[%clk 00:00:09]} Kg7 {[%clk
00:00:12]} 39. Qc1 {[%emt 00:00:02] [%clk 00:00:09]} Qa4 {[%emt 00:00:03] [%clk
00:00:12]} 40. Rc5 {[%emt 00:00:01] [%clk 00:00:10]} Qd4 {[%emt 00:00:04] [%clk
00:00:09]} 41. Kh1 {[%emt 00:00:02] [%clk 00:00:10]} g4 {[%emt 00:00:03] [%clk
00:00:09]} 42. Rc7 {[%clk 00:00:11]} Rd8 {[%emt 00:00:02] [%clk 00:00:09]} 43.
Qf1 {[%clk 00:00:12]} Rf8 {[%emt 00:00:02] [%clk 00:00:10]} 44. Qf6+ {[%clk
00:00:13]} Kg8 {[%clk 00:00:11]} 45. hxg4 {[%emt 00:00:03] [%clk 00:00:12]} Qxg4
{[%emt 00:00:01] [%clk 00:00:12]} 46. Rc1 {[%emt 00:00:02] [%clk 00:00:12]} Qh5+
{[%emt 00:00:03] [%clk 00:00:11]} 47. Kg1 {[%clk 00:00:13]} Qe2 {[%emt 00:00:01]
[%clk 00:00:13]} 48. Rf1 {[%clk 00:00:14]} Qe3+ {[%emt 00:00:02] [%clk
00:00:13]} 49. Rf2 {[%emt 00:00:03] [%clk 00:00:13]} Qe1+ {[%clk 00:00:14]} 50.
Kh2 {[%clk 00:00:15]} Qe4 {[%clk 00:00:15]} 51. Rf4 {[%emt 00:00:01] [%clk
00:00:16]} Qe3 {[%emt 00:00:01] [%clk 00:00:17]} 52. Rh4 {[%emt 00:00:01] [%clk
00:00:17]} 1-0

[Site "Europe Echecs"]

[Event "Championnat d'Europe de Blitz"]
[Date "2024.12.09"]
[White "Bogoevski, Jani"]
[Black "Kozul, Zdenko"]
[WhiteElo "2144"]
[BlackElo "2519"]
[Round "2.25"]
[Result "1/2-1/2"]
[TimeControl "180+2"]

1. d4 {[%emt 00:00:01] [%clk 00:03:02]} Nf6 {[%emt 00:00:01] [%clk 00:03:04]} 2.
Bf4 {[%emt 00:00:01] [%clk 00:03:02]} d6 {[%emt 00:00:05] [%clk 00:03:01]} 3. e3
{[%emt 00:00:03] [%clk 00:03:01]} Nbd7 {[%emt 00:00:03] [%clk 00:03:01]} 4. Nf3
{[%emt 00:00:05] [%clk 00:02:57]} Nh5 {[%emt 00:00:02] [%clk 00:03:02]} 5. Bg3
{[%emt 00:00:15] [%clk 00:02:44]} Nxg3 {[%emt 00:00:03] [%clk 00:03:01]} 6. hxg3
{[%emt 00:00:01] [%clk 00:02:44]} g6 {[%clk 00:03:02]} 7. c3 {[%emt 00:00:07]
[%clk 00:02:40]} Bg7 {[%emt 00:00:02] [%clk 00:03:03]} 8. Nbd2 {[%emt 00:00:01]
[%clk 00:02:41]} c5 {[%emt 00:00:06] [%clk 00:02:59]} 9. Bd3 {[%emt 00:00:09]
[%clk 00:02:33]} O-O {[%emt 00:00:19] [%clk 00:02:42]} 10. O-O {[%emt 00:00:14]
[%clk 00:02:20]} a6 {[%emt 00:00:25] [%clk 00:02:20]} 11. a4 {[%emt 00:00:02]
[%clk 00:02:21]} e6 {[%emt 00:00:05] [%clk 00:02:17]} 12. Re1 {[%emt 00:00:03]
[%clk 00:02:20]} d5 {[%emt 00:00:08] [%clk 00:02:10]} 13. e4 {[%emt 00:00:20]
[%clk 00:02:02]} cxd4 {[%emt 00:00:03] [%clk 00:02:10]} 14. cxd4 {[%emt
00:00:06] [%clk 00:01:57]} dxe4 {[%emt 00:00:06] [%clk 00:02:06]} 15. Nxe4
{[%emt 00:00:07] [%clk 00:01:52]} Nf6 {[%clk 00:02:07]} 16. Qe2 {[%emt 00:00:08]
[%clk 00:01:47]} Nd5 {[%emt 00:00:15] [%clk 00:01:54]} 17. Rad1 {[%emt 00:00:02]
[%clk 00:01:47]} Bd7 {[%emt 00:00:03] [%clk 00:01:54]} 18. Nc5 {[%emt 00:00:07]
[%clk 00:01:42]} Bc6 {[%emt 00:01:04] [%clk 00:00:52]} 19. Be4 {[%emt 00:00:21]
[%clk 00:01:23]} b6 {[%emt 00:00:12] [%clk 00:00:41]} 20. Nd3 {[%emt 00:00:23]
[%clk 00:01:02]} Bxa4 {[%emt 00:00:04] [%clk 00:00:40]} 21. Ra1 {[%clk
00:01:03]} Bb5 {[%emt 00:00:02] [%clk 00:00:40]} 22. Qd2 {[%emt 00:00:06] [%clk
00:00:59]} Bxd3 {[%emt 00:00:04] [%clk 00:00:38]} 23. Qxd3 {[%emt 00:00:03]
[%clk 00:00:59]} a5 {[%emt 00:00:01] [%clk 00:00:39]} 24. Ne5 {[%emt 00:00:07]
[%clk 00:00:54]} Rc8 {[%emt 00:00:01] [%clk 00:00:40]} 25. Rec1 {[%emt 00:00:04]
[%clk 00:00:52]} Rxc1+ {[%emt 00:00:03] [%clk 00:00:38]} 26. Rxc1 {[%clk
00:00:53]} Nb4 {[%clk 00:00:40]} 27. Qe3 {[%emt 00:00:13] [%clk 00:00:43]} Qd6
{[%clk 00:00:40]} 28. Nc4 {[%emt 00:00:03] [%clk 00:00:43]} Qxd4 {[%clk
00:00:41]} 29. Nxb6 {[%emt 00:00:05] [%clk 00:00:40]} Qxe3 {[%emt 00:00:03]
[%clk 00:00:40]} 30. fxe3 {[%clk 00:00:41]} Bxb2 {[%emt 00:00:02] [%clk
00:00:40]} 31. Rc5 {[%emt 00:00:04] [%clk 00:00:39]} Rd8 {[%emt 00:00:11] [%clk
00:00:31]} 32. Bf3 {[%emt 00:00:09] [%clk 00:00:32]} Nd3 {[%emt 00:00:08] [%clk
00:00:25]} 33. Rxa5 {[%emt 00:00:03] [%clk 00:00:31]} Bc1 {[%clk 00:00:26]} 34.
Nc4 {[%emt 00:00:06] [%clk 00:00:27]} Rc8 {[%clk 00:00:27]} 35. Ra4 {[%clk
00:00:28]} Nb2 {[%emt 00:00:02] [%clk 00:00:28]} 36. Nxb2 {[%emt 00:00:04] [%clk
00:00:26]} Bxb2 {[%emt 00:00:01] [%clk 00:00:29]} 37. Ra8 {[%emt 00:00:01] [%clk
00:00:26]} Rxa8 {[%emt 00:00:02] [%clk 00:00:30]} 38. Bxa8 {[%emt 00:00:01]
[%clk 00:00:27]} h5 {[%clk 00:00:30]} 39. Kf2 {[%emt 00:00:07] [%clk 00:00:23]}
Kg7 {[%emt 00:00:04] [%clk 00:00:28]} 40. Kf3 {[%emt 00:00:01] [%clk 00:00:23]}
f5 {[%emt 00:00:01] [%clk 00:00:30]} 41. e4 {[%clk 00:00:24]} Kf6 {[%emt
00:00:01] [%clk 00:00:30]} 42. Bb7 {[%emt 00:00:04] [%clk 00:00:22]} Bd4 {[%emt
00:00:01] [%clk 00:00:31]} 43. Bc6 {[%emt 00:00:02] [%clk 00:00:23]} Be5 {[%emt
00:00:01] [%clk 00:00:32]} 44. Bb7 {[%emt 00:00:02] [%clk 00:00:23]} Bc7 {[%emt
00:00:01] [%clk 00:00:33]} 45. Bc6 {[%emt 00:00:02] [%clk 00:00:23]} g5 {[%emt
00:00:04] [%clk 00:00:30]} 46. exf5 {[%emt 00:00:05] [%clk 00:00:20]} exf5
{[%emt 00:00:02] [%clk 00:00:31]} 47. Be8 {[%emt 00:00:03] [%clk 00:00:19]} g4+
{[%emt 00:00:01] [%clk 00:00:31]} 48. Kf2 {[%emt 00:00:02] [%clk 00:00:19]} Kg5
{[%emt 00:00:01] [%clk 00:00:33]} 49. Bd7 {[%emt 00:00:02] [%clk 00:00:19]} Bb6+
{[%emt 00:00:01] [%clk 00:00:33]} 50. Ke2 {[%emt 00:00:03] [%clk 00:00:19]} Bc7
{[%emt 00:00:19] [%clk 00:00:16]} 51. Kf2 {[%emt 00:00:01] [%clk 00:00:19]} Bd8
{[%emt 00:00:02] [%clk 00:00:16]} 52. Bc8 {[%emt 00:00:02] [%clk 00:00:20]} Kf6
{[%emt 00:00:01] [%clk 00:00:16]} 53. Bd7 {[%emt 00:00:02] [%clk 00:00:21]} Ke5
{[%clk 00:00:18]} 54. Be8 {[%emt 00:00:02] [%clk 00:00:21]} h4 {[%emt 00:00:02]
[%clk 00:00:19]} 55. gxh4 {[%clk 00:00:22]} Bxh4+ {[%emt 00:00:01] [%clk
00:00:20]} 56. Ke2 {[%emt 00:00:01] [%clk 00:00:23]} Kf4 {[%emt 00:00:02] [%clk
00:00:20]} 57. Bc6 {[%emt 00:00:02] [%clk 00:00:23]} Kg3 {[%emt 00:00:01] [%clk
00:00:21]} 58. Kf1 {[%clk 00:00:24]} f4 {[%emt 00:00:02] [%clk 00:00:20]} 59.
Bd5 {[%emt 00:00:02] [%clk 00:00:25]} Kh2 {[%clk 00:00:21]} 60. Bc6 {[%emt
00:00:02] [%clk 00:00:25]} Bf6 {[%clk 00:00:22]} 61. Bd5 {[%emt 00:00:01] [%clk
00:00:26]} Be5 {[%clk 00:00:23]} 62. Be4 {[%emt 00:00:01] [%clk 00:00:26]} Bd4
{[%emt 00:00:08] [%clk 00:00:17]} 63. Bd5 {[%emt 00:00:12] [%clk 00:00:16]}
1/2-1/2

[Site "Europe Echecs"]

[Event "Championnat d'Europe de Blitz"]
[Date "2024.12.09"]
[White "Motylev, Alexander"]
[Black "Ribeiro, Gustavo"]
[WhiteElo "2596"]
[BlackElo "2241"]
[Round "2.26"]
[Result "1-0"]
[TimeControl "180+2"]

1. e4 {[%emt 00:20:14] [%clk 00:03:02]} e5 {[%clk 00:03:03]} 2. Nf3 {[%emt
00:00:02] [%clk 00:03:03]} Nc6 {[%emt 00:00:02] [%clk 00:03:04]} 3. d4 {[%clk
00:03:04]} exd4 {[%emt 00:00:03] [%clk 00:03:04]} 4. Nxd4 {[%emt 00:00:01] [%clk
00:03:04]} Nf6 {[%emt 00:00:02] [%clk 00:03:05]} 5. Nxc6 {[%emt 00:00:01] [%clk
00:03:05]} bxc6 {[%emt 00:00:01] [%clk 00:03:05]} 6. e5 {[%emt 00:00:01] [%clk
00:03:05]} Qe7 {[%emt 00:00:05] [%clk 00:03:03]} 7. Qe2 {[%emt 00:00:01] [%clk
00:03:06]} Nd5 {[%emt 00:00:01] [%clk 00:03:04]} 8. Nd2 {[%clk 00:03:07]} d6
{[%emt 00:00:13] [%clk 00:02:54]} 9. Nc4 {[%emt 00:00:02] [%clk 00:03:07]} Nb6
{[%emt 00:00:56] [%clk 00:02:00]} 10. exd6 {[%emt 00:00:07] [%clk 00:03:01]}
Qxe2+ {[%emt 00:00:03] [%clk 00:01:59]} 11. Bxe2 {[%emt 00:00:01] [%clk
00:03:02]} Nxc4 {[%emt 00:00:12] [%clk 00:01:49]} 12. d7+ {[%emt 00:00:02] [%clk
00:03:03]} Bxd7 {[%emt 00:00:17] [%clk 00:01:34]} 13. Bxc4 {[%clk 00:03:03]}
Bb4+ {[%emt 00:00:14] [%clk 00:01:22]} 14. Bd2 {[%emt 00:00:15] [%clk 00:02:50]}
Bd6 {[%emt 00:00:21] [%clk 00:01:03]} 15. O-O-O {[%emt 00:00:18] [%clk
00:02:35]} O-O {[%emt 00:00:02] [%clk 00:01:02]} 16. Bb4 {[%emt 00:00:32] [%clk
00:02:05]} Bxb4 {[%emt 00:00:28] [%clk 00:00:36]} 17. Rxd7 {[%clk 00:02:06]} Bd6
{[%emt 00:00:01] [%clk 00:00:37]} 18. Re1 {[%emt 00:00:24] [%clk 00:01:44]} g6
{[%emt 00:00:09] [%clk 00:00:30]} 19. g3 {[%emt 00:00:16] [%clk 00:01:30]} Kg7
{[%emt 00:00:01] [%clk 00:00:31]} 20. c3 {[%emt 00:00:22] [%clk 00:01:11]} Rad8
{[%emt 00:00:07] [%clk 00:00:25]} 21. Rxd8 {[%emt 00:00:02] [%clk 00:01:11]}
Rxd8 {[%clk 00:00:27]} 22. Kc2 {[%emt 00:00:02] [%clk 00:01:11]} Rd7 {[%emt
00:00:28]} 1-0

[Site "Europe Echecs"]

[Event "Championnat d'Europe de Blitz"]
[Date "2024.12.09"]
[White "Radovanovic, Dusan"]
[Black "Baidetskyi, Valentin"]
[WhiteElo "2274"]
[BlackElo "2519"]
[Round "2.27"]
[Result "0-1"]
[TimeControl "180+2"]

1. e4 {[%emt 00:20:31] [%clk 00:03:03]} d6 {[%clk 00:03:03]} 2. d4 {[%emt
00:00:02] [%clk 00:03:03]} Nf6 {[%clk 00:03:05]} 3. Nc3 {[%emt 00:00:02] [%clk
00:03:03]} e5 {[%emt 00:00:01] [%clk 00:03:06]} 4. Nf3 {[%emt 00:00:03] [%clk
00:03:01]} Nbd7 {[%emt 00:00:01] [%clk 00:03:07]} 5. a4 {[%emt 00:00:04] [%clk
00:03:00]} Be7 {[%emt 00:00:04] [%clk 00:03:05]} 6. Bc4 {[%clk 00:03:01]} O-O
{[%emt 00:00:02] [%clk 00:03:05]} 7. O-O {[%emt 00:00:01] [%clk 00:03:02]} exd4
{[%emt 00:00:01] [%clk 00:03:06]} 8. Nxd4 {[%emt 00:00:01] [%clk 00:03:02]} Ne5
{[%clk 00:03:07]} 9. Be2 {[%emt 00:00:09] [%clk 00:02:55]} Re8 {[%emt 00:00:22]
[%clk 00:02:47]} 10. f4 {[%emt 00:00:18] [%clk 00:02:39]} Ng6 {[%emt 00:00:01]
[%clk 00:02:48]} 11. Bd3 {[%emt 00:00:53] [%clk 00:01:49]} Bf8 {[%emt 00:00:08]
[%clk 00:02:41]} 12. Kh1 {[%emt 00:00:27] [%clk 00:01:24]} Bd7 {[%emt 00:00:07]
[%clk 00:02:36]} 13. Qf3 {[%emt 00:00:05] [%clk 00:01:21]} c5 {[%emt 00:00:05]
[%clk 00:02:33]} 14. Nf5 {[%emt 00:00:05] [%clk 00:01:18]} Bc6 {[%emt 00:00:05]
[%clk 00:02:30]} 15. Nd5 {[%emt 00:00:17] [%clk 00:01:03]} c4 {[%emt 00:00:35]
[%clk 00:01:58]} 16. Bxc4 {[%emt 00:00:05] [%clk 00:00:59]} Rxe4 {[%emt
00:00:06] [%clk 00:01:53]} 17. Qd3 {[%emt 00:00:40] [%clk 00:00:21]} Rxc4 {[%emt
00:00:11] [%clk 00:01:44]} 0-1

[Site "Europe Echecs"]

[Event "Championnat d'Europe de Blitz"]
[Date "2024.12.09"]
[White "Ragger, Markus"]
[Black "Todorovic, Goran N"]
[WhiteElo "2577"]
[BlackElo "2256"]
[Round "2.28"]
[Result "1-0"]
[TimeControl "180+2"]

1. d4 {[%clk 00:03:03]} Nf6 {[%emt 00:00:01] [%clk 00:03:03]} 2. c4 {[%emt
00:00:02] [%clk 00:03:04]} e6 {[%clk 00:03:04]} 3. Nf3 {[%clk 00:03:05]} b6
{[%emt 00:00:02] [%clk 00:03:04]} 4. g3 {[%emt 00:00:01] [%clk 00:03:06]} Ba6
{[%emt 00:00:01] [%clk 00:03:04]} 5. b3 {[%emt 00:00:02] [%clk 00:03:07]} Bb4+
{[%emt 00:00:01] [%clk 00:03:05]} 6. Bd2 {[%clk 00:03:08]} Bxd2+ {[%emt
00:00:02] [%clk 00:03:05]} 7. Qxd2 {[%emt 00:00:03] [%clk 00:03:07]} c6 {[%clk
00:03:06]} 8. Qc2 {[%emt 00:00:04] [%clk 00:03:06]} d5 {[%emt 00:00:01] [%clk
00:03:06]} 9. Nbd2 {[%emt 00:00:01] [%clk 00:03:07]} Nbd7 {[%emt 00:00:05] [%clk
00:03:03]} 10. e4 {[%emt 00:00:02] [%clk 00:03:07]} dxe4 {[%emt 00:00:29] [%clk
00:02:36]} 11. Nxe4 {[%emt 00:00:28] [%clk 00:02:41]} Nxe4 {[%emt 00:00:05]
[%clk 00:02:33]} 12. Qxe4 {[%clk 00:02:42]} Rc8 {[%emt 00:00:04] [%clk
00:02:32]} 13. Bg2 {[%emt 00:00:06] [%clk 00:02:38]} O-O {[%emt 00:00:01] [%clk
00:02:32]} 14. O-O {[%emt 00:00:03] [%clk 00:02:38]} c5 {[%emt 00:00:04] [%clk
00:02:29]} 15. Rad1 {[%emt 00:00:09] [%clk 00:02:32]} Qc7 {[%emt 00:00:02] [%clk
00:02:29]} 16. Ne5 {[%emt 00:00:42] [%clk 00:01:52]} Nxe5 {[%emt 00:00:48] [%clk
00:01:43]} 17. dxe5 {[%emt 00:00:02] [%clk 00:01:52]} Rcd8 {[%emt 00:00:01]
[%clk 00:01:43]} 18. h4 {[%emt 00:00:03] [%clk 00:01:52]} h6 {[%emt 00:00:01]
[%clk 00:01:44]} 19. Qf4 {[%emt 00:00:34] [%clk 00:01:20]} Bb7 {[%emt 00:00:11]
[%clk 00:01:35]} 20. Bxb7 {[%emt 00:00:07] [%clk 00:01:16]} Qxb7 {[%clk
00:01:36]} 21. Rd6 {[%emt 00:00:02] [%clk 00:01:16]} Rxd6 {[%clk 00:01:36]} 22.
exd6 {[%emt 00:00:01] [%clk 00:01:17]} Qc6 {[%emt 00:00:01] [%clk 00:01:37]} 23.
Rd1 {[%emt 00:00:11] [%clk 00:01:09]} Rd8 {[%clk 00:01:38]} 24. Qe5 {[%emt
00:00:05] [%clk 00:01:06]} Qd7 {[%emt 00:00:12] [%clk 00:01:28]} 25. Qe4 {[%emt
00:00:08] [%clk 00:01:01]} Rc8 {[%emt 00:00:07] [%clk 00:01:22]} 26. Rd3 {[%emt
00:00:03] [%clk 00:01:00]} Rd8 {[%emt 00:00:10] [%clk 00:01:14]} 27. g4 {[%emt
00:00:04] [%clk 00:00:58]} g6 {[%emt 00:00:04] [%clk 00:01:12]} 28. Qe5 {[%emt
00:00:09] [%clk 00:00:51]} Qc6 {[%emt 00:00:07] [%clk 00:01:05]} 29. h5 {[%emt
00:00:03] [%clk 00:00:52]} gxh5 {[%emt 00:00:17] [%clk 00:00:50]} 30. g5 {[%emt
00:00:27] [%clk 00:00:27]} Kh7 {[%emt 00:00:06] [%clk 00:00:46]} 31. Qf6 {[%emt
00:00:02] [%clk 00:00:28]} Qd7 {[%emt 00:00:05] [%clk 00:00:42]} 32. Qxh6+
{[%emt 00:00:10] [%clk 00:00:20]} Kg8 {[%emt 00:00:02] [%clk 00:00:42]} 33. g6
{[%emt 00:00:04] [%clk 00:00:18]} f6 {[%emt 00:00:08] [%clk 00:00:36]} 34. Qxh5
{[%emt 00:00:02] [%clk 00:00:18]} Qg7 {[%emt 00:00:06] [%clk 00:00:32]} 35. Qg4
{[%emt 00:00:01] [%clk 00:00:19]} f5 {[%emt 00:00:03] [%clk 00:00:31]} 36. Qg5
{[%emt 00:00:01] [%clk 00:00:20]} Rd7 {[%clk 00:00:32]} 37. Kg2 {[%emt 00:00:02]
[%clk 00:00:20]} Qe5 {[%emt 00:00:04] [%clk 00:00:30]} 38. Qh4 {[%emt 00:00:07]
[%clk 00:00:15]} Qh8 {[%emt 00:00:29] [%clk 00:00:03]} 39. Qf4 {[%emt 00:00:04]
[%clk 00:00:13]} Qf6 {[%emt 00:00:01] [%clk 00:00:04]} 40. Rh3 {[%emt 00:00:06]
[%clk 00:00:09]} Rg7 {[%emt 00:00:05]} 1-0

[Site "Europe Echecs"]

[Event "Championnat d'Europe de Blitz"]
[Date "2024.12.09"]
[White "Mikluc, Davorin"]
[Black "Peyrer, Konstantin"]
[WhiteElo "2232"]
[BlackElo "2440"]
[Round "2.29"]
[Result "0-1"]
[TimeControl "180+2"]

1. e4 {[%emt 00:00:03] [%clk 00:03:03]} e5 {[%clk 00:03:03]} 2. Nf3 {[%emt
00:00:01] [%clk 00:03:04]} Nc6 {[%emt 00:00:01] [%clk 00:03:04]} 3. Bb5 {[%clk
00:03:05]} a6 {[%emt 00:00:01] [%clk 00:03:05]} 4. Ba4 {[%clk 00:03:06]} f5
{[%clk 00:03:06]} 5. exf5 {[%emt 00:00:11] [%clk 00:02:57]} e4 {[%emt 00:00:05]
[%clk 00:03:03]} 6. Bxc6 {[%emt 00:00:04] [%clk 00:02:55]} bxc6 {[%emt 00:00:01]
[%clk 00:03:03]} 7. Qe2 {[%emt 00:00:02] [%clk 00:02:55]} Qe7 {[%emt 00:00:02]
[%clk 00:03:03]} 8. Nd4 {[%emt 00:00:08] [%clk 00:02:49]} Nf6 {[%emt 00:00:03]
[%clk 00:03:02]} 9. h3 {[%emt 00:00:33] [%clk 00:02:18]} c5 {[%emt 00:00:07]
[%clk 00:02:57]} 10. Nb3 {[%emt 00:00:04] [%clk 00:02:16]} d5 {[%emt 00:00:01]
[%clk 00:02:58]} 11. g4 {[%emt 00:00:12] [%clk 00:02:06]} Qf7 {[%emt 00:00:29]
[%clk 00:02:31]} 12. d3 {[%emt 00:00:11] [%clk 00:01:57]} Bd6 {[%emt 00:00:02]
[%clk 00:02:31]} 13. Nc3 {[%emt 00:00:11] [%clk 00:01:48]} O-O {[%emt 00:00:03]
[%clk 00:02:30]} 14. Bg5 {[%emt 00:00:09] [%clk 00:01:41]} exd3 {[%emt 00:00:05]
[%clk 00:02:27]} 15. Qd2 {[%emt 00:00:27] [%clk 00:01:16]} Re8+ {[%emt 00:00:02]
[%clk 00:02:27]} 16. Kd1 {[%emt 00:00:14] [%clk 00:01:04]} d4 {[%emt 00:00:05]
[%clk 00:02:23]} 17. Bxf6 {[%emt 00:00:12] [%clk 00:00:54]} gxf6 {[%emt
00:00:01] [%clk 00:02:24]} 18. Na4 {[%emt 00:00:14] [%clk 00:00:43]} c4 {[%emt
00:00:06] [%clk 00:02:20]} 19. Nxd4 {[%emt 00:00:16] [%clk 00:00:29]} Qd5 {[%clk
00:02:21]} 20. Re1 {[%emt 00:00:01] [%clk 00:00:30]} Bd7 {[%emt 00:00:04] [%clk
00:02:18]} 21. cxd3 {[%emt 00:00:10] [%clk 00:00:22]} Bxa4+ {[%emt 00:00:03]
[%clk 00:02:18]} 0-1

[Site "Europe Echecs"]

[Event "Championnat d'Europe de Blitz"]
[Date "2024.12.09"]
[White "Koelle, Tobias"]
[Black "Mcgowan, Daniel"]
[WhiteElo "2437"]
[BlackElo "2089"]
[Round "2.30"]
[Result "1-0"]
[TimeControl "180+2"]

1. d4 {[%clk 00:03:02]} e6 {[%emt 00:00:03] [%clk 00:03:03]} 2. c4 {[%clk
00:03:03]} Nf6 {[%emt 00:00:01] [%clk 00:03:04]} 3. Nf3 {[%emt 00:00:01] [%clk
00:03:04]} d5 {[%emt 00:00:02] [%clk 00:03:04]} 4. Nc3 {[%clk 00:03:06]} Be7
{[%emt 00:00:01] [%clk 00:03:04]} 5. Bf4 {[%clk 00:03:07]} a6 {[%emt 00:00:09]
[%clk 00:02:57]} 6. c5 {[%emt 00:00:02] [%clk 00:03:06]} O-O {[%emt 00:00:08]
[%clk 00:02:51]} 7. h3 {[%emt 00:00:01] [%clk 00:03:07]} Nbd7 {[%emt 00:00:13]
[%clk 00:02:40]} 8. e3 {[%emt 00:00:02] [%clk 00:03:07]} Re8 {[%emt 00:00:06]
[%clk 00:02:37]} 9. Bd3 {[%emt 00:00:01] [%clk 00:03:08]} Nf8 {[%emt 00:00:01]
[%clk 00:02:38]} 10. O-O {[%emt 00:00:02] [%clk 00:03:08]} b6 {[%emt 00:00:12]
[%clk 00:02:27]} 11. b4 {[%emt 00:00:01] [%clk 00:03:09]} Bb7 {[%emt 00:00:03]
[%clk 00:02:26]} 12. Qc2 {[%emt 00:00:09] [%clk 00:03:02]} Ng6 {[%emt 00:00:22]
[%clk 00:02:07]} 13. Bh2 {[%emt 00:00:17] [%clk 00:02:46]} Bc6 {[%emt 00:00:30]
[%clk 00:01:39]} 14. a4 {[%emt 00:00:08] [%clk 00:02:41]} Qb8 {[%emt 00:00:58]
[%clk 00:00:43]} 15. b5 {[%emt 00:00:10] [%clk 00:02:34]} axb5 {[%emt 00:00:05]
[%clk 00:00:40]} 16. axb5 {[%emt 00:00:01] [%clk 00:02:35]} Rxa1 {[%emt
00:00:14] [%clk 00:00:27]} 17. Rxa1 {[%clk 00:02:36]} Ba8 {[%emt 00:00:05] [%clk
00:00:25]} 18. c6 {[%emt 00:00:03] [%clk 00:02:35]} Rc8 {[%emt 00:00:10] [%clk
00:00:17]} 19. Qa4 {[%emt 00:00:01] [%clk 00:02:36]} Ne8 {[%emt 00:00:07] [%clk
00:00:12]} 20. Bxg6 {[%emt 00:00:05] [%clk 00:02:32]} hxg6 {[%emt 00:00:02]
[%clk 00:00:13]} 21. Ne5 {[%clk 00:02:34]} 1-0

[Site "Europe Echecs"]